[Event "Summer Prague Open-A 2022"]
[Site "Prague"]
[Date "2022.08.08"]
[Round "5.8"]
[White "Ranaldi, Lucas"]
[Black "Mirimanian, Hayk"]
[Result "1/2-1/2"]
[ECO "A15"]
[WhiteElo "2339"]
[BlackElo "2228"]
[Annotator "RC"]
[PlyCount "103"]
[EventDate "2022.08.05"]
[EventType "swiss"]
[EventCountry "CZE"]
[SourceTitle "playchess.com"]
[Source "ChessBase"]
[SourceQuality "1"]
[TimeControl "40/5400+30:1800+30"]

1. c4 {[%emt 0:00:02]} Nf6 {[%emt 0:06:00]} 2. Nf3 {[%emt 0:00:48]} e6 {[%emt 0:00:22]} 3. Nc3 {[%emt 0:02:12]} d5 {[%emt 0:00:26]} 4. d4 {[%emt 0:00:27]} dxc4 {[%emt 0:02:19]} 5. e4 {[%emt 0:00:22]} Bb4 {[%emt 0:02:59]} 6. Bg5 {[%emt 0:00:35]} h6 {[%emt 0:12:08]} 7. Bxf6 {[%emt 0:00:33]} Qxf6 {[%emt 0:06:17]} 8. Bxc4 {[%emt 0:00:36]} O-O {[%emt 0:00:42]} 9. e5 {[%emt 0:09:02]} Qe7 {[%emt 0:10:19]} 10. O-O {[%emt 0:02:45]} Bxc3 {[%emt 0:01:17]} 11. bxc3 {[%emt 0:00:13]} Rd8 {[%emt 0:06:37]} 12. Qe2 {[%emt 0:07:33]} Nd7 {[%emt 0:05:19]} 13. Rad1 {[%emt 0:05:07]} Nf8 {[%emt 0:03:33]} 14. Nd2 {[%emt 0:06:52]} Qa3 {[%emt 0:06:37]} 15. Ne4 {[%emt 0:09:39]} Bd7 {[%emt 0:00:19]} 16. Rd3 {[%emt 0:13:40]} Bc6 {[%emt 0:06:22]} 17. f4 {[%emt 0:06:16]} b5 {[%emt 0:03:39]} 18. Bb3 {[%emt 0:01:18]} Bxe4 {[%emt 0:00:18]} 19. Qxe4 {[%emt 0:00:12]} c5 {[%emt 0:00:42]} 20. Rg3 {[%emt 0:07:42]} cxd4 {[%emt 0:01:03]} 21. cxd4 {[%emt 0:03:04]} Qb2 {[%emt 0:03:11]} 22. d5 {[%emt 0:02:28]} exd5 {[%emt 0:00:40]} 23. Bxd5 {[%emt 0:00:14]} Rac8 {[%emt 0:00:19]} 24. Bxf7+ {[%emt 0:11:02]} Kxf7 {[%emt 0:00:12]} 25. Qb7+ {[%emt 0:00:11]} Ke8 {[%emt 0:05:27]} 26. Rxg7 {[%emt 0:00:14]} Qd4+ {[%emt 0:00:08]} 27. Kh1 {[%emt 0:00:07]} Nd7 {[%emt 0:00:06]} 28. Qf3 {[%emt 0:04:32]} Kf8 {[%emt 0:01:01]} 29. Qg3 {[%emt 0:02:37]} Qc4 {[%emt 0:00:20]} 30. Rg1 {[%emt 0:00:36]} Nc5 {[%emt 0:05:03]} 31. Rxa7 {[%emt 0:01:59]} Rd7 {[%emt 0:02:22]} 32. Rxd7 {[%emt 0:00:19]} Nxd7 {[%emt 0:00:01]} 33. Qh3 {[%emt 0:00:49]} Qc6 {[%emt 0:04:02]} 34. e6 {[%emt 0:01:11]} Nf6 {[%emt 0:00:02]} 35. Qxh6+ {[%emt 0:00:28]} Ke7 {[%emt 0:00:04]} 36. Qg7+ {[%emt 0:00:58]} Kxe6 {[%emt 0:00:02]} 37. Re1+ {[%emt 0:00:18]} Ne4 {[%emt 0:00:02]} 38. h3 {[%emt 0:00:55]} Re8 {[%emt 0:00:01]} 39. Qg6+ {[%emt 0:01:17]} Kd7 {[%emt 0:00:01]} 40. Qf5+ {[%emt 0:00:43]} Kc7 {[%emt 0:02:12]} 41. Kh2 {[%emt 0:06:08]} Kb6 {[%emt 0:03:50]} 42. Qg4 {[%emt 0:07:45]} Nc3 {[%emt 0:11:08]} 43. Rxe8 {[%emt 0:00:40]} Qxe8 {[%emt 0:00:02]} 44. Qf3 {[%emt 0:01:08]} Qe1 {[%emt 0:01:24]} 45. f5 {[%emt 0:06:28]} Qe5+ {[%emt 0:11:43]} 46. g3 {[%emt 0:01:18]} Ne4 {[%emt 0:02:57]} 47. h4 {[%emt 0:00:50]} Qb2+ {[%emt 0:00:34]} 48. Kh3 {[%emt 0:04:23]} Nf2+ {[%emt 0:00:05]} 49. Kg2 {[%emt 0:00:22]} Ne4+ {[%emt 0:02:03]} 50. Kh3 {[%emt 0:00:18]} Nf2+ {[%emt 0:00:22]} 51. Kg2 {[%emt 0:00:17]} Ne4+ {[%emt 0:00:04]} 52. Kh3 {[%emt 0:00:08]} 1/2-1/2

[Event "Summer Prague Open-A 2022"]
[Site "Prague"]
[Date "2022.08.08"]
[Round "5.9"]
[White "Lalic, Bogdan"]
[Black "Svatos, Jan"]
[Result "1-0"]
[ECO "A17"]
[WhiteElo "2412"]
[BlackElo "2185"]
[Annotator "RC"]
[PlyCount "114"]
[EventDate "2022.08.05"]
[EventType "swiss"]
[EventCountry "CZE"]
[SourceTitle "playchess.com"]
[Source "ChessBase"]
[SourceQuality "1"]
[TimeControl "40/5400+30:1800+30"]

1. c4 {[%emt 0:06:43]} Nf6 {[%emt 0:00:08]} 2. Nc3 {[%emt 0:00:12]} e6 {[%emt 0:00:05]} 3. Nf3 {[%emt 0:00:13]} b6 {[%emt 0:02:19]} 4. g3 {[%emt 0:00:10]} Bb7 {[%emt 0:00:04]} 5. Bg2 {[%emt 0:00:07]} Bb4 {[%emt 0:00:38]} 6. Qb3 {[%emt 0:01:17]} a5 {[%emt 0:01:14]} 7. O-O {[%emt 0:00:31]} O-O {[%emt 0:00:46]} 8. d4 {[%emt 0:00:59]} Bxc3 {[%emt 0:33:46]} 9. Qxc3 {[%emt 0:00:08]} d6 {[%emt 0:00:28]} 10. b3 {[%emt 0:00:32]} Nbd7 {[%emt 0:00:49]} 11. Bb2 {[%emt 0:00:11]} Ne4 {[%emt 0:01:31]} 12. Qc2 {[%emt 0:00:35]} f5 {[%emt 0:12:39]} 13. Rad1 {[%emt 0:02:36]} Qe7 {[%emt 0:01:35]} 14. d5 {[%emt 0:01:53]} e5 {[%emt 0:01:05]} 15. Nh4 {[%emt 0:00:30]} Ndc5 {[%emt 0:08:02]} 16. Nxf5 {[%emt 0:01:07]} Rxf5 {[%emt 0:00:17]} 17. Bxe4 {[%emt 0:00:01]} Nxe4 {[%emt 0:00:06]} 18. Qxe4 {[%emt 0:00:06]} Qf7 {[%emt 0:03:49]} 19. f4 {[%emt 0:04:27]} Rf8 {[%emt 0:10:21]} 20. e3 {[%emt 0:00:06]} Qg6 {[%emt 0:00:57]} 21. Qg2 {[%emt 0:00:27]} exf4 {[%emt 0:02:08]} 22. gxf4 {[%emt 0:04:52]} Qxg2+ {[%emt 0:13:17]} 23. Kxg2 {[%emt 0:00:01]} g5 {[%emt 0:00:26]} 24. Bc1 {[%emt 0:01:22]} gxf4 {[%emt 0:00:14]} 25. exf4 {[%emt 0:00:21]} a4 {[%emt 0:03:38]} 26. Rf3 {[%emt 0:01:55]} b5 {[%emt 0:00:49]} 27. Re1 {[%emt 0:02:17]} bxc4 {[%emt 0:01:12]} 28. bxc4 {[%emt 0:00:06]} c6 {[%emt 0:00:42]} 29. Rg3+ {[%emt 0:13:13]} Kf7 {[%emt 0:00:01]} 30. Bb2 {[%emt 0:00:10]} Rg8 {[%emt 0:00:20]} 31. Rxg8 {[%emt 0:00:13]} Kxg8 {[%emt 0:00:00]} 32. dxc6 {[%emt 0:00:09]} Bxc6+ {[%emt 0:00:03]} 33. Kg3 {[%emt 0:00:09]} Kf7 {[%emt 0:02:52]} 34. Bd4 {[%emt 0:00:42]} Bd7 {[%emt 0:00:26]} 35. Rb1 {[%emt 0:01:37]} Rh5 {[%emt 0:00:27]} 36. Rb7 {[%emt 0:01:04]} Ke8 {[%emt 0:00:01]} 37. h4 {[%emt 0:00:13]} Rh6 {[%emt 0:00:35]} 38. Ra7 {[%emt 0:03:18]} Rg6+ {[%emt 0:00:09]} 39. Kf3 {[%emt 0:01:37]} Bc6+ {[%emt 0:00:18]} 40. Ke2 {[%emt 0:00:17]} Rg4 {[%emt 0:01:34]} 41. Rxh7 {[%emt 0:31:40]} Rxf4 {[%emt 0:01:25]} 42. Rh8+ {[%emt 0:00:00]} Ke7 {[%emt 0:08:04]} 43. Kd3 {[%emt 0:00:00]} Be8 {[%emt 0:00:58]} 44. h5 {[%emt 0:00:00]} Rf3+ {[%emt 0:06:40]} 45. Be3 {[%emt 0:00:00]} Rh3 {[%emt 0:00:09]} 46. h6 {[%emt 0:00:00]} Bg6+ {[%emt 0:09:29]} 47. Ke2 {[%emt 0:00:00]} Bh5+ {[%emt 0:02:19]} 48. Kd2 {[%emt 0:05:45]} Rh2+ {[%emt 0:00:12]} 49. Kc3 {[%emt 0:00:10]} Rh3 {[%emt 0:00:11]} 50. Kb4 {[%emt 0:05:16]} Be8 {[%emt 0:05:36]} 51. Bg5+ {[%emt 0:07:22]} Kf7 {[%emt 0:00:05]} 52. h7 {[%emt 0:22:48]} Rh1 {[%emt 0:00:26]} 53. a3 {[%emt 0:02:20]} Rh3 {[%emt 0:00:02]} 54. Ka5 {[%emt 0:00:55]} Rh5 {[%emt 0:00:31]} 55. Kb6 {[%emt 0:00:09]} Rh3 {[%emt 0:01:14]} 56. Kc7 {[%emt 0:00:17]} Rf3 57. Be3 Ke7 1-0

[Event "Summer Prague Open-A 2022"]
[Site "Prague"]
[Date "2022.08.08"]
[Round "5.10"]
[White "Fleish, Felix"]
[Black "Schmaltz, Roland"]
[Result "0-1"]
[ECO "B23"]
[WhiteElo "2244"]
[BlackElo "2466"]
[Annotator "TA"]
[PlyCount "110"]
[EventDate "2022.08.05"]
[EventType "swiss"]
[EventCountry "CZE"]
[SourceTitle "playchess.com"]
[Source "ChessBase"]
[SourceQuality "1"]
[TimeControl "40/5400+30:1800+30"]

{[%evp 18,110,-7,-11,-22,-32,-33,-59,-60,-59,-56,-56,-49,-47,-50,-54,-30,-35,-47,-45,-27,-99,-103,-98,-87,-102,-97,-93,-93,-80,-13,-13,-13,-13,-12,-22,-14,-14,-14,-18,0,0,0,-59,-15,-31,-13,-16,-8,-24,-22,-25,-27,-23,0,0,0,-4,-2,-9,-10,-77,-77,-208,-186,-512,-503,-529,-510,-644,-649,-566,-517,-519,-491,-720,-637,-1838,-1775,-1551,-1307,-6087,-4140,-1930,-791,-5057,-4291,-1967,-1033,-29985,-29986,-29986,-29987,-29987,-29988]} 1. e4 {[%emt 0:01:53]} c5 {[%emt 0:00:15]} 2. Nc3 {[%emt 0:02:46]} e6 {[%emt 0:00:25]} 3. g3 {[%emt 0:01:06]} Nc6 {[%emt 0:00:09]} 4. Bg2 {[%emt 0:00:04]} g6 {[%emt 0:00:27]} 5. d3 {[%emt 0:00:47]} Bg7 {[%emt 0:00:09]} 6. Be3 {[%emt 0:00:40]} d6 {[%emt 0:00:10]} 7. Qd2 {[%emt 0:00:17]} Rb8 {[%emt 0:01:25]} 8. Nge2 {[%emt 0:02:09]} Nd4 {[%emt 0:00:20]} 9. Bxd4 {[%emt 0:08:12]} cxd4 {[%emt 0:00:14]} 10. Nb5 {[%emt 0:00:10][%csl LRa7,LRd4]} Qb6 {[%emt 0:00:34] B26: Closed Sicilian: 3 g3, lines with early Be3.} 11. Qb4 {[%emt 0:03:56]} Ke7 {[%emt 0:03:55]} 12. c3 {[%emt 0:01:51]} (12. Nexd4 $2 Bd7 13. f4 a6 14. Nc6+ bxc6 $19) 12... dxc3 {[%emt 0:02:39] Black is slightly better.} 13. bxc3 {[%emt 0:00:21]} ({Don't blunder} 13. Nexc3 $2 a6 14. d4 axb5 $19) 13... a6 {[%emt 0:01:44]} 14. Nbd4 {[%emt 0:00:12]} Qxb4 {[%emt 0:00:17]} 15. cxb4 {[%emt 0:00:01]} Bd7 {[%emt 0:00:51]} 16. Rc1 {[%emt 0:11:25] [#]} Kd8 $146 {[%emt 0:01:49]} ({Predecessor:} 16... Nf6 17. Kd2 Rhc8 18. f4 e5 19. Nc2 Be6 20. a3 d5 21. fxe5 Bh6+ 22. Nf4 Nh5 23. Rhf1 {½-½ (23) Arias,J (1933)-Kropff,R (2224) Cochabamba 2013}) 17. Nb3 {[%emt 0:04:57]} Ne7 {[%emt 0:01:15]} 18. d4 {[%emt 0:09:02]} b6 {[%emt 0:09:03]} (18... Rc8 {seems wilder.} 19. Kd2 b6 20. f4 d5) 19. d5 {[%emt 0:14:17]} (19. f4 $11 {keeps the balance.}) 19... exd5 $17 {[%emt 0:00:46]} 20. exd5 {[%emt 0:00:01]} Nf5 {[%emt 0:00:14] Against Nbd4} 21. O-O {[%emt 0:00:57]} Re8 {[%emt 0:00:28]} 22. Nc3 {[%emt 0:03:24]} Rc8 {[%emt 0:02:16] Black is more active.} 23. Ne4 {[%emt 0:00:26]} Bb5 {[%emt 0:03:46]} (23... Ke7 $17) 24. Rxc8+ $1 $11 {[%emt 0:01:50]} Kxc8 {[%emt 0:00:05]} 25. g4 $1 {[%emt 0:05:40]} Bxf1 {[%emt 0:01:04]} 26. Kxf1 {[%emt 0:00:06] [#]} Rxe4 $1 {[%emt 0:00:29]} 27. Bxe4 {[%emt 0:00:03][%mdl 4096] Endgame KBN-KBN} Nh6 {[%emt 0:00:41]} 28. g5 {[%emt 0:06:00]} Ng4 {[%emt 0:00:12]} 29. h3 {[%emt 0:00:26]} Ne5 {[%emt 0:00:17]} 30. Nd4 {[%emt 0:02:26]} ({White should try} 30. a4 $11) 30... b5 {[%emt 0:00:26]} 31. Nc6 {[%emt 0:00:30]} Nc4 {[%emt 0:02:09] Hoping for ...Nd2+.} 32. Ke2 {[%emt 0:00:16] Inhibits Nd2.} Bb2 {[%emt 0:01:09]} 33. Bc2 {[%emt 0:04:05]} Bc1 {[%emt 0:01:07]} 34. h4 {[%emt 0:00:00]} Nb6 {[%emt 0:00:25]} 35. Bb3 {[%emt 0:00:12]} Bb2 {[%emt 0:02:37]} 36. f4 {[%emt 0:00:03]} Bc1 {[%emt 0:01:40]} 37. Kf3 {[%emt 0:00:10]} Kc7 {[%emt 0:00:48]} 38. Kg4 {[%emt 0:17:59]} Nc4 39. Bxc4 {[%emt 0:00:06]} (39. Kf3 $11) 39... bxc4 {[%emt 0:00:39] KB-KN} 40. Nd4 {[%emt 0:00:15] [#] Loses the game.} (40. Kf3 $17) 40... Bd2 $1 $19 {[%emt 0:00:57]} 41. a3 $2 (41. Nc2) 41... Kb6 {[%emt 0:30:28]} 42. f5 {[%emt 0:30:40]} a5 {[%emt 0:01:22]} 43. fxg6 {[%emt 0:00:13]} hxg6 {[%emt 0:00:17]} 44. bxa5+ {[%emt 0:00:16]} Bxa5 {[%emt 0:01:01] aiming for ...Kc5.} 45. Kf3 {[%emt 0:00:20]} Be1 {[%emt 0:01:08]} 46. Ke4 {[%emt 0:00:18]} (46. Ke2 $142 Bxh4 47. Nf3) 46... Bxh4 {[%emt 0:00:31]} 47. Nf3 {[%emt 0:00:07]} Bf2 {[%emt 0:00:37]} 48. Nd2 {[%emt 0:02:35]} Kc5 {[%emt 0:00:33]} 49. a4 {[%emt 0:00:30]} Be1 {[%emt 0:00:21]} 50. Nf3 {[%emt 0:00:40]} Bc3 {[%emt 0:00:34] Threatens to win with ...Kb4.} 51. Ng1 {[%emt 0:00:16]} Kb4 {[%emt 0:00:23]} 52. Ne2 {[%emt 0:00:25]} Be5 {[%emt 0:00:25]} 53. Nd4 {[%emt 0:00:44]} Bxd4 {[%emt 0:00:38] Black mates.} 54. Kxd4 {[%emt 0:00:06]} c3 {[%emt 0:00:09]} 55. Kd3 {[%emt 0:00:31]} Kb3 {[%emt 0:00:15] Weighted Error Value: White=0.91/Black=0.23 (precise)} 0-1

[Event "Summer Prague Open-A 2022"]
[Site "Prague"]
[Date "2022.08.08"]
[Round "5.11"]
[White "Bruchmann, Stephan"]
[Black "Kaspi, Alexander"]
[Result "1/2-1/2"]
[ECO "B53"]
[WhiteElo "2226"]
[BlackElo "2414"]
[Annotator "RC"]
[PlyCount "44"]
[EventDate "2022.08.05"]
[EventType "swiss"]
[EventCountry "CZE"]
[SourceTitle "playchess.com"]
[Source "ChessBase"]
[SourceQuality "1"]
[TimeControl "40/5400+30:1800+30"]

1. e4 {[%emt 0:00:05]} c5 {[%emt 0:00:10]} 2. Nf3 {[%emt 0:00:10]} d6 {[%emt 0:00:43]} 3. d4 {[%emt 0:00:44]} cxd4 {[%emt 0:00:07]} 4. Qxd4 {[%emt 0:00:14]} Nc6 {[%emt 0:00:08]} 5. Bb5 {[%emt 0:00:11]} Bd7 {[%emt 0:00:09]} 6. Bxc6 {[%emt 0:00:08]} bxc6 {[%emt 0:00:35]} 7. O-O {[%emt 0:00:25]} e5 {[%emt 0:00:07]} 8. Qd3 {[%emt 0:00:06]} Qc7 {[%emt 0:00:20]} 9. c4 {[%emt 0:00:09]} Ne7 {[%emt 0:00:38]} 10. Be3 {[%emt 0:16:16]} Ng6 {[%emt 0:02:28]} 11. Nc3 {[%emt 0:08:40]} Rd8 {[%emt 0:05:08]} 12. b4 {[%emt 0:06:07]} Be7 {[%emt 0:08:31]} 13. b5 {[%emt 0:00:39]} O-O {[%emt 0:00:57]} 14. bxc6 {[%emt 0:00:47]} Bxc6 {[%emt 0:14:07]} 15. Nd5 {[%emt 0:01:58]} Bxd5 {[%emt 0:00:06]} 16. cxd5 {[%emt 0:00:06]} Rb8 {[%emt 0:04:22]} 17. Rfc1 {[%emt 0:06:13]} Qd7 {[%emt 0:00:13]} 18. Nd2 {[%emt 0:00:26]} Bd8 {[%emt 0:00:15]} 19. Rc6 {[%emt 0:03:13]} Ne7 {[%emt 0:04:12]} 20. Ra6 {[%emt 0:06:38]} Bb6 {[%emt 0:00:28]} 21. Bxb6 {[%emt 0:00:49]} Rxb6 {[%emt 0:00:54]} 22. Rxb6 {[%emt 0:01:38]} axb6 {[%emt 0:00:11]} 1/2-1/2

[Event "Summer Prague Open-A 2022"]
[Site "Prague"]
[Date "2022.08.08"]
[Round "5.12"]
[White "Lutsko, Artem"]
[Black "Shehzad, Shazil"]
[Result "1-0"]
[ECO "A20"]
[WhiteElo "2392"]
[BlackElo "2274"]
[Annotator "RC"]
[PlyCount "75"]
[EventDate "2022.08.05"]
[EventType "swiss"]
[EventCountry "CZE"]
[SourceTitle "playchess.com"]
[Source "ChessBase"]
[SourceQuality "1"]
[TimeControl "40/5400+30:1800+30"]

1. c4 {[%emt 0:00:03]} e5 {[%emt 0:06:59]} 2. d3 {[%emt 0:00:18]} Nf6 {[%emt 0:01:05]} 3. Nf3 {[%emt 0:00:04]} Nc6 {[%emt 0:00:34]} 4. a3 {[%emt 0:00:10]} d5 {[%emt 0:00:33]} 5. cxd5 {[%emt 0:00:09]} Nxd5 {[%emt 0:00:06]} 6. e4 {[%emt 0:00:33]} Nb6 {[%emt 0:00:21]} 7. Be3 {[%emt 0:00:04]} Be7 {[%emt 0:01:41]} 8. Be2 {[%emt 0:00:03]} O-O {[%emt 0:00:23]} 9. O-O {[%emt 0:00:03]} f5 {[%emt 0:00:05]} 10. Qc2 {[%emt 0:07:53]} a5 {[%emt 0:03:18]} 11. Rd1 {[%emt 0:03:51]} f4 {[%emt 0:03:11]} 12. Bc5 {[%emt 0:01:10]} Bg4 {[%emt 0:20:52]} 13. Nbd2 {[%emt 0:00:08]} Qd7 {[%emt 0:16:18]} 14. b4 {[%emt 0:06:41]} Bxc5 {[%emt 0:08:05]} 15. Qxc5 {[%emt 0:13:47]} Qd6 {[%emt 0:06:15]} 16. Qxd6 {[%emt 0:03:25]} cxd6 {[%emt 0:00:08]} 17. b5 {[%emt 0:00:02]} Bxf3 {[%emt 0:03:17]} 18. Nxf3 {[%emt 0:00:08]} Nd4 {[%emt 0:00:13]} 19. Nxd4 {[%emt 0:04:48]} exd4 {[%emt 0:00:07]} 20. Rdc1 {[%emt 0:00:12]} Rac8 {[%emt 0:04:12]} 21. Bg4 {[%emt 0:00:07]} Rc5 {[%emt 0:00:19]} 22. Rxc5 {[%emt 0:03:35]} dxc5 {[%emt 0:02:17]} 23. Rc1 {[%emt 0:00:04]} Na4 {[%emt 0:04:05]} 24. Rc4 {[%emt 0:00:06]} Nb2 {[%emt 0:00:29]} 25. Rxc5 {[%emt 0:00:06]} Nxd3 {[%emt 0:00:40]} 26. Be6+ {[%emt 0:05:42]} Kh8 {[%emt 0:00:04]} 27. Rd5 {[%emt 0:01:22]} f3 {[%emt 0:03:31]} 28. g3 {[%emt 0:03:52]} Nc1 {[%emt 0:00:59]} 29. Kf1 {[%emt 0:01:44]} Ne2 {[%emt 0:00:40]} 30. b6 {[%emt 0:20:22]} g6 {[%emt 0:01:56]} 31. e5 {[%emt 0:01:19]} h5 {[%emt 0:02:34]} 32. Rd7 {[%emt 0:03:19]} Rc8 {[%emt 0:05:01]} 33. Rc7 {[%emt 0:06:07]} Rd8 {[%emt 0:00:39]} 34. Rc8 {[%emt 0:00:42]} Rxc8 {[%emt 0:00:13]} 35. Bxc8 {[%emt 0:00:02]} Nc3 {[%emt 0:00:46]} 36. Bxb7 {[%emt 0:00:10]} Na4 {[%emt 0:00:16]} 37. e6 {[%emt 0:00:06]} Kg7 {[%emt 0:00:16]} 38. Bc6 {[%emt 0:00:40]} 1-0

[Event "Summer Prague Open-A 2022"]
[Site "Prague"]
[Date "2022.08.08"]
[Round "5.13"]
[White "Ehrlich, Roy"]
[Black "Zamengo, Fulvio"]
[Result "0-1"]
[ECO "C00"]
[WhiteElo "2183"]
[BlackElo "2396"]
[Annotator "RC"]
[PlyCount "80"]
[EventDate "2022.08.05"]
[EventType "swiss"]
[EventCountry "CZE"]
[SourceTitle "playchess.com"]
[Source "ChessBase"]
[SourceQuality "1"]
[TimeControl "40/5400+30:1800+30"]

1. e4 {[%emt 0:02:30]} e6 {[%emt 0:00:24]} 2. b3 {[%emt 0:00:11]} d5 {[%emt 0:00:13]} 3. Bb2 {[%emt 0:00:13]} Nc6 {[%emt 0:01:33]} 4. e5 {[%emt 0:00:07]} d4 {[%emt 0:00:51]} 5. Nf3 {[%emt 0:00:05]} Nge7 {[%emt 0:02:35]} 6. Qe2 {[%emt 0:00:06]} a6 {[%emt 0:07:09]} 7. Qe4 {[%emt 0:04:21]} Nf5 {[%emt 0:04:55]} 8. c3 {[%emt 0:03:16]} Bc5 {[%emt 0:18:30]} 9. Na3 {[%emt 0:29:23]} Qd5 {[%emt 0:25:20]} 10. Bd3 {[%emt 0:01:23]} dxc3 {[%emt 0:00:53]} 11. dxc3 {[%emt 0:00:14]} Qxe4+ {[%emt 0:00:19]} 12. Bxe4 {[%emt 0:00:05]} Bd7 {[%emt 0:00:29]} 13. O-O {[%emt 0:11:04]} h6 {[%emt 0:02:59]} 14. Nc2 {[%emt 0:06:33]} O-O-O {[%emt 0:02:06]} 15. b4 {[%emt 0:00:53]} Be7 {[%emt 0:06:34]} 16. a4 {[%emt 0:02:10]} Nb8 {[%emt 0:09:01]} 17. g4 {[%emt 0:15:26]} Nh4 {[%emt 0:00:07]} 18. Nfd4 {[%emt 0:02:15]} h5 {[%emt 0:07:55]} 19. f3 {[%emt 0:02:12]} Ng6 {[%emt 0:02:53]} 20. f4 {[%emt 0:06:05]} hxg4 {[%emt 0:00:08]} 21. b5 {[%emt 0:03:32]} c5 {[%emt 0:00:40]} 22. bxc6 {[%emt 0:00:27]} Nxc6 {[%emt 0:00:08]} 23. Ba3 {[%emt 0:04:03]} Bxa3 {[%emt 0:00:08]} 24. Nxa3 {[%emt 0:00:17]} Na5 {[%emt 0:00:04]} 25. Nb1 {[%emt 0:03:22]} Nc4 {[%emt 0:01:26]} 26. Bd3 {[%emt 0:00:39]} Ne3 {[%emt 0:00:06]} 27. Re1 {[%emt 0:00:09]} Nd5 {[%emt 0:00:12]} 28. f5 {[%emt 0:00:43]} Nh4 {[%emt 0:01:00]} 29. Nd2 {[%emt 0:00:34]} exf5 {[%emt 0:01:23]} 30. Nc4 {[%emt 0:00:17]} Be6 {[%emt 0:00:37]} 31. Nd6+ {[%emt 0:00:14]} Kc7 {[%emt 0:00:13]} 32. N6xf5 {[%emt 0:02:03]} Nf4 {[%emt 0:00:30]} 33. Be4 {[%emt 0:01:05]} Nh3+ {[%emt 0:00:37]} 34. Kh1 {[%emt 0:00:32]} Nf2+ {[%emt 0:00:05]} 35. Kg1 {[%emt 0:00:01]} Nxe4 {[%emt 0:00:13]} 36. Nxh4 {[%emt 0:00:43]} Ng5 {[%emt 0:00:06]} 37. Ng2 {[%emt 0:00:49]} Nf3+ {[%emt 0:00:15]} 38. Nxf3 {[%emt 0:00:05]} gxf3 {[%emt 0:00:06]} 39. Nf4 {[%emt 0:01:10]} Rd2 {[%emt 0:00:02]} 40. Nxe6+ {[%emt 0:00:41]} fxe6 {[%emt 0:00:05]} 0-1

[Event "Summer Prague Open-A 2022"]
[Site "Prague"]
[Date "2022.08.08"]
[Round "5.14"]
[White "Neuman, Petr"]
[Black "Gloser, David"]
[Result "1-0"]
[ECO "B54"]
[WhiteElo "2378"]
[BlackElo "2221"]
[Annotator "RC"]
[PlyCount "101"]
[EventDate "2022.08.05"]
[EventType "swiss"]
[EventCountry "CZE"]
[SourceTitle "playchess.com"]
[Source "ChessBase"]
[SourceQuality "1"]
[TimeControl "40/5400+30:1800+30"]

1. e4 {[%emt 0:01:31]} c5 {[%emt 0:00:10]} 2. Nf3 {[%emt 0:00:06]} d6 {[%emt 0:00:18]} 3. d4 {[%emt 0:00:09]} cxd4 {[%emt 0:00:12]} 4. Nxd4 {[%emt 0:00:04]} Nf6 {[%emt 0:00:23]} 5. f3 {[%emt 0:00:09]} g6 {[%emt 0:01:20]} 6. c4 {[%emt 0:00:21]} Bg7 {[%emt 0:01:16]} 7. Be3 {[%emt 0:00:21]} O-O {[%emt 0:01:26]} 8. Nc3 {[%emt 0:00:06]} Nc6 {[%emt 0:01:07]} 9. Qd2 {[%emt 0:00:12]} Bd7 {[%emt 0:00:54]} 10. Be2 {[%emt 0:04:14]} Nxd4 {[%emt 0:00:43]} 11. Bxd4 {[%emt 0:00:05]} Bc6 {[%emt 0:00:19]} 12. O-O {[%emt 0:00:08]} a5 {[%emt 0:00:25]} 13. b3 {[%emt 0:00:13]} Nd7 {[%emt 0:00:22]} 14. Bf2 {[%emt 0:00:07]} Nc5 {[%emt 0:03:54]} 15. Rab1 {[%emt 0:00:17]} f5 {[%emt 0:06:40]} 16. exf5 {[%emt 0:00:52]} gxf5 {[%emt 0:04:01]} 17. Nb5 {[%emt 0:02:56]} Rf6 18. Nd4 {[%emt 0:21:17]} Bd7 {[%emt 0:14:40]} 19. Rbd1 {[%emt 0:01:21]} Qf8 {[%emt 0:02:57]} 20. Rfe1 {[%emt 0:00:43]} Rg6 {[%emt 0:05:07]} 21. Bf1 {[%emt 0:05:27]} b6 {[%emt 0:05:11]} 22. Ne2 {[%emt 0:03:26]} e5 {[%emt 0:04:57]} 23. Nc3 {[%emt 0:01:27]} Bc6 {[%emt 0:00:28]} 24. Nd5 {[%emt 0:00:07]} Rb8 {[%emt 0:00:50]} 25. Qc2 {[%emt 0:10:07]} Kh8 {[%emt 0:06:04]} 26. Kh1 {[%emt 0:03:44]} Rh6 {[%emt 0:02:53]} 27. Be3 {[%emt 0:16:57]} f4 {[%emt 0:02:38]} 28. Bg1 {[%emt 0:00:05]} e4 {[%emt 0:01:12]} 29. Rxe4 {[%emt 0:01:00]} Bxd5 {[%emt 0:02:31]} 30. Rxd5 {[%emt 0:00:21]} Nxe4 {[%emt 0:00:27]} 31. Qxe4 {[%emt 0:00:14]} Re8 {[%emt 0:00:48]} 32. Qd3 {[%emt 0:00:25]} Re1 {[%emt 0:03:32]} 33. Bxb6 {[%emt 0:01:55]} Qe7 {[%emt 0:03:18]} 34. Bf2 {[%emt 0:03:07]} Re5 {[%emt 0:04:42]} 35. Qd2 {[%emt 0:05:59]} Rxd5 {[%emt 0:07:34]} 36. Qxd5 {[%emt 0:00:43]} Bc3 {[%emt 0:02:10]} 37. Bd3 {[%emt 0:02:01]} Re6 {[%emt 0:01:36]} 38. Be4 {[%emt 0:00:17]} Qf6 {[%emt 0:02:21]} 39. g4 {[%emt 0:04:35]} Qe5 {[%emt 0:01:47]} 40. Qd3 {[%emt 0:03:02]} Re7 {[%emt 0:02:08]} 41. h4 {[%emt 0:33:55]} h6 {[%emt 0:32:58]} 42. Kg2 {[%emt 0:01:08]} Re8 {[%emt 0:02:46]} 43. Kf1 {[%emt 0:00:25]} Kg7 {[%emt 0:00:00]} 44. h5 {[%emt 0:00:00]} Kf8 {[%emt 0:00:00]} 45. Bd5 {[%emt 0:00:00]} Ke7 {[%emt 0:00:00]} 46. c5 {[%emt 0:00:00]} Kd8 {[%emt 0:00:00]} 47. c6 {[%emt 0:00:00]} Re7 {[%emt 0:00:00]} 48. Qa6 {[%emt 0:00:00]} Rc7 {[%emt 0:00:00]} 49. Qa8+ {[%emt 0:00:00]} Rc8 {[%emt 0:00:00]} 50. Bh4+ {[%emt 0:00:00]} Kc7 {[%emt 0:00:00]} 51. Qb7# 1-0